bitfinex-derivatives/quotes_SOLF0:USTF0_20251108
["timestamp","ask_amount","ask_price","bid_price","bid_amount"]
[1762570994145,2.95,164.27,164.23,2.89]
[1762570994346,7.30478074,164.3,164.23,2.89]
[1762570994543,2.95,164.3,164.23,2.89]
[1762570994747,0.03731681,164.28,164.25,2.93170501]
[1762570995843,2.98731681,164.28,164.25,2.93170501]
[1762570996150,2.98731681,164.28,164.25,0.04170501]
[1762570997251,2.98731681,164.28,164.25,2.93170501]
[1762570997749,0.03731681,164.28,164.25,2.93170501]
[1762570999251,0.03731681,164.28,164.27,2.89]
[1762571002153,4.35478074,164.37,164.27,2.89]
[1762571002154,2.95,164.42,164.33,2.89]
[1762571002345,1.73632779,164.48,164.39,2.89]
[1762571002550,2.95,164.47,164.39,2.89]
[1762571002751,1.73632779,164.44,164.26,2.89]
[1762571002948,4.68632779,164.44,164.34,2.89]
[1762571003146,4.68632779,164.44,164.26,6.76]
[1762571003147,2.95,164.49,164.37,1.78186069]
[1762571003346,1.73632779,164.48,164.41,0.0449649]
[1762571003548,2.95,164.47,164.43,0.04009751]
[1762571004255,1.73632779,164.5,164.43,2.93009751]
[1762571004447,2.95,164.52,164.43,2.93009751]
[1762571004651,2.95,164.52,164.43,0.04009751]
[1762571004852,2.95,164.49,164.43,0.04009751]
[1762571005050,2.95,164.49,164.44,0.04661385]
[1762571005249,8.4247,164.49,164.44,0.04661385]
[1762571005456,4.35271504,164.54,164.44,0.04661385]
[1762571005457,2.95,164.48,164.44,0.04661385]
[1762571005647,2.95,164.48,164.44,0.03842326]
[1762571006452,2.95,164.47,164.44,0.03842326]
[1762571007254,2.95,164.45,164.44,0.03842326]
[1762571007559,2.95,164.45,164.43,0.04562863]
[1762571007754,2.95,164.45,164.42,0.04013729]
[1762571013955,2.96,164.43,164.42,0.04013729]
[1762571014866,4.33850863,164.5,164.34,8.2993]
[1762571014867,2.96,164.41,164.34,8.2993]
[1762571015263,2.96,164.41,164.31,2.82]
[1762571015457,22.70910471,164.47,164.31,2.82]
[1762571015458,2.96,164.38,164.31,2.82]
[1762571015863,2.96,164.35,164.33,0.04468111]
[1762571016168,2.96,164.35,164.32,0.04295036]
[1762571020675,0.04013729,164.36,164.34,2.82]
[1762571021375,0.04013729,164.36,164.32,2.86295036]
[1762571022475,2.99013729,164.36,164.32,0.04295036]
[1762571023487,8.46903729,164.36,164.32,0.04295036]
[1762571023683,2.95,164.35,164.32,0.04295036]
[1762571023986,0.04013729,164.36,164.32,2.86295036]
[1762571024780,0.04013729,164.36,164.35,2.82]
[1762571032686,2.95,164.44,164.37,2.82]
[1762571033085,2.95,164.47,164.4,2.82]
[1762571033589,2.95,164.47,164.42,2.86212925]
[1762571035691,2.95,164.47,164.42,0.04212925]
[1762571036490,2.95,164.45,164.42,0.04212925]
[1762571036692,2.95,164.45,164.42,0.04459982]
[1762571037888,2.95,164.49,164.42,2.86459982]
[1762571038091,2.95,164.49,164.44,2.86043896]
[1762571038997,2.95,164.49,164.44,0.04043896]
[1762571039191,4.36878654,164.54,164.44,0.04043896]
[1762571039192,2.95,164.53,164.44,2.86043896]
[1762571039397,2.95,164.53,164.48,5.4745]
[1762571039596,2.95,164.53,164.47,0.04405195]
[1762571040390,2.95,164.53,164.47,2.86405195]
[1762571040597,1.80787955,164.55,164.47,2.86405195]
[1762571040895,1.80787955,164.55,164.54,2.82]
[1762571040896,7.955e-05,164.55,164.54,2.82]
[1762571041408,2.95,164.67,164.61,5.4704]
[1762571041588,2.95,164.67,164.53,2.82]
[1762571041791,8.4191,164.65,164.58,0.04499483]
[1762571041992,8.4191,164.65,164.6,0.03944019]
[1762571041993,2.95,164.65,164.6,0.03944019]
[1762571043790,2.95,164.65,164.6,2.99944019]
[1762571044505,2.95,164.65,164.6,0.03944019]
[1762571045102,8.4194,164.65,164.6,0.03944019]
[1762571045302,4.37106544,164.69,164.6,2.99944019]
[1762571045506,2.99,164.68,164.6,0.03944019]
[1762571046998,2.99,164.65,164.6,0.03944019]
[1762571049407,2.99,164.64,164.6,0.03944019]
[1762571049707,2.99,164.64,164.6,0.04574676]
[1762571051002,2.99,164.62,164.6,0.04574676]
[1762571051599,2.99,164.68,164.6,0.04574676]
[1762571052204,2.99,164.64,164.6,0.04574676]
[1762571052510,2.99,164.69,164.61,2.96]
[1762571052702,2.99,164.69,164.63,0.04637196]
[1762571053997,2.99,164.69,164.63,3.00637196]
[1762571056507,2.99,164.75,164.64,2.96]
[1762571056713,2.99,164.75,164.68,0.04156001]
[1762571057112,8.456,164.75,164.68,0.04156001]
[1762571058508,2.99,164.75,164.69,2.96]
[1762571060009,2.99,164.75,164.68,0.04156001]
[1762571060308,2.99,164.74,164.68,0.04156001]
[1762571060709,2.99,164.74,164.68,3.00156001]
[1762571062021,2.99,164.74,164.7,5.4672]
[1762571062701,4.308497,164.76,164.71,2.96]
[1762571062900,2.99,164.75,164.72,0.03860997]
[1762571064018,1.318497,164.76,164.75,2.96]
[1762571064207,2.99,164.82,164.75,2.96]
[1762571064412,2.99,164.82,164.77,0.04662443]
[1762571064806,2.99,164.82,164.77,3.00662443]
[1762571065408,2.99,164.85,164.77,3.00662443]
[1762571066313,1.78410268,164.89,164.77,3.00662443]
[1762571066615,1.78410268,164.89,164.82,2.96]
[1762571066616,2.99,164.88,164.82,2.96]
[1762571066805,2.99,164.88,164.83,0.0418773]
[1762571067006,2.99,164.88,164.84,0.04008941]
[1762571067206,2.99,164.88,164.84,0.04197027]
[1762571067912,2.99,164.88,164.84,3.00197027]
[1762571069013,2.99,164.88,164.84,0.04197027]
[1762571070112,2.99,164.85,164.84,0.04197027]
[1762571070319,2.99,164.85,164.76,2.96]
[1762571071108,2.99,164.84,164.76,2.96]
[1762571071315,2.99,164.81,164.78,0.04608706]
[1762571071621,2.99,164.81,164.78,0.03861481]
[1762571072924,3.09,164.8,164.78,0.03861481]
[1762571074222,3.09,164.79,164.78,0.03861481]
[1762571076922,3.09,164.79,164.69,3.06]
[1762571077218,5.4652,164.77,164.7,5.4672]
[1762571077423,3.09,164.79,164.7,5.4672]
[1762571077618,3.09,164.79,164.69,3.06]
[1762571078122,3.09,164.75,164.72,0.03862742]
[1762571078316,0.0413181,164.76,164.72,3.09862742]
[1762571078519,3.1313181,164.76,164.72,3.09862742]
[1762571078718,3.1313181,164.76,164.72,0.03862742]
[1762571079117,3.1313181,164.76,164.72,3.09862742]
[1762571079313,0.0413181,164.76,164.72,3.09862742]
[1762571079618,3.09,164.87,164.73,3.06]
[1762571079813,5.4623,164.86,164.73,3.06]
[1762571080013,3.09,164.85,164.76,3.06]
[1762571080622,3.09,164.81,164.79,0.04647475]
[1762571080821,3.09,164.81,164.78,0.04166211]
[1762571081123,3.12827649,164.81,164.78,0.04471068]
[1762571081823,2.83,164.8,164.78,0.04471068]
[1762571085429,0.03827649,164.81,164.78,8.49931068]
[1762571085629,2.83,164.8,164.78,0.04471068]
[1762571085933,2.83,164.78,164.71,5.4669]
[1762571086230,2.83,164.77,164.71,5.4669]
[1762571086727,2.869763,164.76,164.72,0.04242698]
[1762571086931,2.869763,164.76,164.72,0.04295304]
[1762571089536,0.039763,164.76,164.72,3.03295304]
[1762571090025,0.039763,164.76,164.73,5.4662]
[1762571090534,0.039763,164.76,164.73,8.4562]
[1762571091343,0.039763,164.76,164.74,8.4559]
[1762571091742,0.039763,164.76,164.75,2.99]
[1762571092345,2.83,164.82,164.77,2.99]
[1762571092845,2.83,164.82,164.73,2.99]
[1762571093443,0.03937986,164.79,164.76,3.03339831]
[1762571093951,0.03937986,164.79,164.77,5.4649]
[1762571094152,0.03937986,164.79,164.76,3.03339831]
[1762571094545,0.03937986,164.79,164.78,2.99]
[1762571094849,2.83,164.85,164.78,2.99]
[1762571095045,2.83,164.85,164.73,10.9327]
[1762571095046,7.15364039,164.87,164.82,8.4532]
[1762571095256,2.83,164.87,164.82,2.99]
[1762571095854,2.83,164.87,164.83,0.04273031]
[1762571096145,2.83,164.85,164.83,0.04312559]
[1762571097145,7.24530268,164.89,164.83,0.04312559]
[1762571097146,2.83,164.87,164.83,3.03312559]
[1762571097347,1.78410268,164.89,164.83,3.03312559]
[1762571098040,1.78410268,164.89,164.83,8.49602559]
[1762571098346,1.78410268,164.89,164.83,3.03312559]
[1762571098950,1.78410268,164.89,164.85,2.99]
[1762571100052,2.83,164.88,164.83,3.03312559]
[1762571100446,1.78410268,164.89,164.83,3.03312559]
[1762571100946,4.61410268,164.89,164.83,8.49612559]
[1762571101150,2.83,164.88,164.83,0.04312559]
[1762571101355,8.2917,164.88,164.83,0.04312559]
[1762571101552,7.20286703,164.87,164.83,0.04312559]
[1762571101854,2.83,164.85,164.76,2.99]
[1762571102148,2.83,164.83,164.76,2.99]
[1762571102350,3.11,164.82,164.72,3.09]
[1762571102554,3.11,164.8,164.72,3.09]
[1762571102747,3.14990843,164.78,164.74,0.03919665]
[1762571102947,3.14990843,164.78,164.74,0.04299479]
[1762571104548,3.14990843,164.78,164.61,88.88897331]
[1762571104549,3.11,164.76,164.68,3.09]
[1762571104754,3.11,164.74,164.6,3.09]
[1762571104961,3.11,164.72,164.65,5.4689]
[1762571105257,3.11,164.72,164.63,3.09]
[1762571105453,3.11,164.7,164.61,5.4702]
[1762571105650,3.11,164.66,164.64,0.04225835]
[1762571105844,3.11,164.66,164.59,3.09]
[1762571105845,3.11,164.66,164.63,0.04625923]
[1762571106043,0.04445741,164.67,164.63,3.13625923]
[1762571107549,0.04445741,164.67,164.66,3.09]
[1762571108555,3.11,164.77,164.69,3.09]
[1762571109452,3.11,164.77,164.71,0.04345441]
[1762571109757,178.86912637,164.91,164.71,3.13345441]
[1762571109758,0.04550728,164.75,164.71,3.13345441]
[1762571109946,0.04017923,164.75,164.71,3.13315632]
[1762571110956,0.04017923,164.75,164.73,8.5564]
[1762571112563,0.04017923,164.75,164.71,5.51025632]
[1762571112755,3.15017923,164.75,164.71,5.51025632]
[1762571112955,3.15017923,164.75,164.71,8.60025632]
[1762571113151,0.04017923,164.75,164.72,3.09]
[1762571113356,18.37,164.83,164.71,8.60025632]
[1762571113357,3.11,164.83,164.74,3.09]
[1762571114068,3.11,164.83,164.76,5.4652]
[1762571114262,3.11,164.83,164.78,0.03879914]
[1762571114567,3.11,164.83,164.78,3.12879914]
[1762571114767,3.11,164.87,164.78,3.12879914]
[1762571114969,3.11,164.87,164.81,0.0428355]
[1762571121768,11.62458097,164.89,164.81,0.0428355]
[1762571121769,3.11,164.85,164.81,0.0428355]
[1762571121976,3.11,164.84,164.81,0.0428355]
[1762571122175,3.11,164.83,164.72,3.09]
[1762571122469,3.11,164.8,164.72,3.09]
[1762571123063,3.11,164.8,164.73,5.4662]
[1762571123267,3.15063445,164.78,164.74,0.03913065]
[1762571125183,0.04063445,164.78,164.74,3.12913065]
[1762571125377,0.04063445,164.78,164.77,3.09]
[1762571126271,3.11,164.86,164.78,3.09]
[1762571126570,3.11,164.86,164.78,8.5546]
[1762571126764,3.11,164.86,164.78,3.09]
[1762571127075,3.11,164.86,164.8,0.03872221]
[1762571129777,1.78410268,164.89,164.83,8.5529]
[1762571130072,3.11,164.88,164.84,0.03963932]
[1762571132576,8.5717,164.88,164.84,0.03963932]
[1762571132774,2.84,164.87,164.84,0.03963932]
[1762571136881,4.62410268,164.89,164.84,3.05963932]
[1762571137179,2.84,164.88,164.84,0.03963932]
[1762571144980,2.84,164.88,164.84,5.50223932]
[1762571146779,2.84,164.88,164.84,0.03963932]
[1762571146983,8.3016,164.88,164.84,0.03963932]
[1762571147185,3.08,164.87,164.84,0.03963932]
[1762571150386,8.5419,164.87,164.84,0.03963932]
[1762571150590,3.08,164.86,164.84,0.03963932]
[1762571151887,3.08,164.86,164.76,2.95]
[1762571151888,3.08,164.85,164.76,2.95]
[1762571152087,3.08,164.83,164.76,2.95]
[1762571152590,3.08,164.83,164.78,8.4147]
[1762571153191,3.12014733,164.82,164.79,0.04192321]
[1762571155092,4.84820817,164.82,164.79,0.04192321]
[1762571155286,3.08,164.81,164.79,0.04192321]
[1762571155692,8.544,164.81,164.79,0.04192321]
[1762571155897,3.08,164.79,164.71,2.95]
[1762571156896,3.12120477,164.77,164.73,0.03932352]
[1762571157608,4.80806084,164.74,164.73,0.03932352]
[1762571157897,4.80806084,164.74,164.68,2.95]
[1762571158403,3.08,164.77,164.69,2.95]
[1762571158705,0.03947652,164.75,164.71,2.98844415]
[1762571159596,3.11947652,164.75,164.71,0.03844415]
[1762571159789,4.84753736,164.75,164.71,0.03844415]
[1762571160002,0.03947652,164.75,164.71,2.98844415]
[1762571161093,0.03947652,164.75,164.72,5.4666]
[1762571161403,3.11947652,164.75,164.71,0.03844415]
[1762571161608,3.08,164.73,164.71,0.03844415]
[1762571162302,3.01,164.71,164.65,2.95]
[1762571162505,1.72806084,164.7,164.65,2.95]
[1762571162705,3.01,164.69,164.65,8.4189]
[1762571163302,3.05398312,164.69,164.65,8.46091006]
[1762571163501,3.05398312,164.69,164.66,5.4685]
[1762571163904,3.05398312,164.69,164.65,2.99201006]
[1762571164103,3.05398312,164.69,164.65,8.46091006]
[1762571164298,3.05398312,164.69,164.65,3.03201006]
[1762571164499,0.04398312,164.69,164.67,5.4682]
[1762571164699,0.04398312,164.69,164.68,2.99]
[1762571164912,3.01,164.75,164.68,2.99]
[1762571165912,0.03829506,164.73,164.7,0.04454286]
[1762571166212,0.03829506,164.73,164.71,5.4668]
[1762571168107,0.03829506,164.73,164.71,8.4568]
[1762571171615,0.03829506,164.73,164.72,2.99]
[1762571173017,3.01,164.72,164.59,2.99]
[1762571173201,0.03829506,164.73,164.59,2.99]
[1762571173202,3.01,164.71,164.59,2.99]
[1762571173605,3.01,164.71,164.64,5.4693]
[1762571173816,3.01,164.69,164.61,2.99]
[1762571174116,3.04965102,164.67,164.63,0.03836516]
[1762571175706,8.51825102,164.67,164.63,0.03836516]
[1762571175908,3.01,164.66,164.63,0.03836516]
[1762571178311,3.01,164.66,164.57,2.99]
[1762571178511,3.01,164.65,164.58,5.4714]
[1762571178714,3.01,164.65,164.57,2.99]
[1762571179410,3.05593399,164.63,164.59,5.51445776]
[1762571179713,3.05211324,164.63,164.59,5.51249439]
[1762571179917,3.05211324,164.63,164.59,8.50249439]
[1762571180116,3.05211324,164.63,164.59,5.51249439]
[1762571180622,3.05211324,164.63,164.59,0.04159439]
[1762571182609,8.52211324,164.63,164.59,0.04159439]
[1762571182815,3.05211324,164.63,164.51,2.99]
[1762571183016,3.01,164.63,164.51,2.99]
[1762571184021,18.22,164.68,164.55,0.04483548]
[1762571184022,3.01,164.58,164.55,0.04483548]
[1762571184316,3.0565148,164.58,164.55,0.0463061]
[1762571189821,3.01,164.57,164.55,0.0463061]
[1762571193323,0.0465148,164.58,164.55,3.0863061]
[1762571194232,0.0465148,164.58,164.57,3.04]
[1762571194625,2.93,164.68,164.58,3.04]
[1762571194827,2.93,164.67,164.58,3.04]
[1762571195029,77.74,164.71,164.58,3.04]
[1762571195326,2.93,164.7,164.64,5.4692]
[1762571195526,2.97314184,164.69,164.65,0.04454037]
[1762571196127,0.04314184,164.69,164.67,5.4682]
[1762571196330,11.37840992,164.86,164.66,1.22]
[1762571196331,2.93,164.83,164.69,3.04]
[1762571197135,2.93,164.87,164.74,3.04]
[1762571197332,2.97243603,164.82,164.79,0.04407902]
[1762571197529,2.97566768,164.82,164.79,0.04391583]
[1762571198237,2.93,164.81,164.67,3.04]
[1762571198438,0.04566768,164.82,164.67,3.04]
[1762571198439,2.93,164.82,164.67,3.04]
[1762571199130,2.93,164.82,164.74,3.04]
[1762571199330,0.04154012,164.8,164.77,3.04]
[1762571199530,0.04154012,164.8,164.77,0.04192622]
[1762571199531,0.04370058,164.8,164.77,0.04192622]
[1762571200434,2.97370058,164.8,164.77,0.04192622]
[1762571200833,2.93,164.79,164.69,3.04]
[1762571201135,2.93,164.77,164.69,3.04]
[1762571201833,0.03894484,164.75,164.71,3.07614167]
[1762571202038,0.04295372,164.75,164.71,3.07614167]
[1762571202437,0.04295372,164.75,164.73,3.03]
[1762571203435,0.04295372,164.75,164.71,3.07614167]
[1762571204439,0.04295372,164.75,164.71,0.04614167]
[1762571204440,3.14295372,164.75,164.71,0.04614167]
[1762571205334,0.04295372,164.75,164.71,3.07614167]
[1762571206238,0.04295372,164.75,164.72,3.03]
[1762571207335,0.04295372,164.75,164.72,8.4965]
[1762571207541,0.04295372,164.75,164.73,3.03]
[1762571208034,0.00295372,164.75,164.73,3.03]
[1762571208242,3.1,164.86,164.71,0.04614167]
[1762571208243,5.4629,164.84,164.75,8.4956]
[1762571208443,8.5629,164.84,164.75,8.4956]
[1762571208638,23.6818,164.87,164.77,3.03]
[1762571208839,3.1,164.88,164.77,3.03]
[1762571209142,1.78410268,164.89,164.81,0.04391619]
[1762571209143,0.04153705,164.84,164.81,0.04391619]
[1762571209436,0.04153705,164.84,164.82,3.03]
[1762571209939,0.04153705,164.84,164.83,8.4931]
[1762571210540,4.88410268,164.89,164.81,0.04391619]
[1762571210742,3.1,164.88,164.81,0.04391619]
[1762571211042,1.78410268,164.89,164.82,3.03]
[1762571211546,0.03878121,164.87,164.82,3.03]
[1762571212043,3.13878121,164.87,164.81,0.04391619]
[1762571212435,8.60078121,164.87,164.81,0.04391619]
[1762571212844,3.13878121,164.87,164.81,0.04391619]
[1762571213247,3.1,164.83,164.81,0.04391619]
[1762571214436,8.5634,164.83,164.81,0.04391619]
[1762571214740,3.1,164.82,164.81,0.04391619]
[1762571217245,3.1,164.81,164.74,3.03]
[1762571217439,3.1,164.81,164.7,3.03]
[1762571218249,0.04060308,164.77,164.74,0.04046174]
[1762571218640,0.04060308,164.77,164.74,3.07046174]
[1762571219844,3.14060308,164.77,164.74,0.04046174]
[1762571221650,3.1,164.76,164.74,0.04046174]
[1762571226348,8.5656,164.76,164.74,0.04046174]
[1762571226648,2.99,164.75,164.74,0.04046174]
[1762571227959,2.99,164.73,164.66,3.02]
[1762571228946,0.04044897,164.71,164.68,0.03893303]
[1762571229650,0.04044897,164.71,164.68,3.05893303]
[1762571230740,3.03044897,164.71,164.68,0.03893303]
[1762571231137,0.04044897,164.71,164.68,3.05893303]
[1762571231748,0.04044897,164.71,164.7,3.02]
[1762571234046,0.04044897,164.71,164.69,5.4676]
[1762571234348,0.04044897,164.71,164.69,8.4876]
[1762571234846,0.04044897,164.71,164.7,3.02]
[1762571236144,2.99,164.77,164.72,8.4867]
[1762571236749,2.99,164.8,164.73,3.02]
[1762571237152,0.04325896,164.78,164.75,0.04458773]
[1762571238061,3.03325896,164.78,164.75,5.51018773]
[1762571238753,3.03325896,164.78,164.75,0.04458773]
[1762571240048,8.49825896,164.78,164.75,0.04458773]
[1762571240244,2.99,164.77,164.75,0.04458773]
[1762571240445,0.04325896,164.78,164.75,3.06458773]
[1762571240745,3.03325896,164.78,164.75,0.04458773]
[1762571241557,8.49815896,164.78,164.75,0.04458773]
[1762571241854,2.99,164.77,164.75,0.04458773]
[1762571247160,3.03325896,164.78,164.75,0.04458773]
[1762571248061,3.03325896,164.78,164.75,5.51028773]
[1762571250562,3.03325896,164.78,164.75,8.53028773]
[1762571250761,0.04325896,164.78,164.75,8.53028773]
[1762571251963,3.03325896,164.78,164.75,8.53028773]
[1762571253460,3.03325896,164.78,164.75,0.04458773]
[1762571254167,2.93,164.77,164.75,0.04458773]
[1762571260671,2.93,164.76,164.66,4.59010895]
[1762571260872,1.73010895,164.75,164.66,4.59010895]
[1762571261065,7.19600895,164.75,164.67,5.4683]
[1762571261376,2.93,164.74,164.66,4.59010895]
[1762571261559,0.03987534,164.72,164.68,3.13539317]
[1762571261870,2.94987534,164.72,164.68,8.60319317]
[1762571262067,2.94987534,164.72,164.68,3.13539317]
[1762571262974,2.91,164.71,164.68,0.04539317]
[1762571263771,2.91,164.7,164.68,0.04539317]
[1762571266670,0.03987534,164.72,164.68,0.04539317]
[1762571266671,0.03987534,164.72,164.68,3.13539317]
[1762571267376,2.94987534,164.72,164.68,3.13539317]
[1762571267568,2.94987534,164.72,164.68,8.60339317]
[1762571268565,0.03987534,164.72,164.69,3.09]
[1762571268762,2.94987534,164.72,164.68,0.04539317]
[1762571269568,2.94987534,164.72,164.68,3.13539317]
[1762571269774,4.67998429,164.72,164.68,3.13539317]
[1762571269978,2.91,164.71,164.68,3.13539317]
[1762571270178,2.91,164.71,164.68,0.04539317]
[1762571274577,4.64010895,164.69,164.68,0.04539317]
[1762571274878,2.91,164.68,164.59,3.09]
[1762571275077,2.91,164.68,164.63,8.5596]
[1762571275274,2.91,164.68,164.64,3.09]
[1762571275776,2.95006242,164.68,164.64,3.13157952]
[1762571275986,0.04006242,164.68,164.65,3.09]
[1762571276377,2.95006242,164.68,164.65,3.09]
[1762571276579,0.04006242,164.68,164.67,3.09]
[1762571279572,0.04006242,164.68,164.66,5.4686]
[1762571280982,2.95006242,164.68,164.64,8.60077952]
[1762571281182,2.95006242,164.68,164.64,3.13157952]
[1762571282078,2.95006242,164.68,164.66,5.4686]
[1762571282279,0.04006242,164.68,164.67,2.92]
[1762571282684,0.04006242,164.68,164.66,8.3886]
[1762571283283,3.13006242,164.68,164.66,5.4686]
[1762571284278,0.04006242,164.68,164.66,5.4686]
[1762571286090,0.04006242,164.68,164.67,2.92]
[1762571286593,0.04006242,164.68,164.66,8.3886]
[1762571286992,0.04006242,164.68,164.67,2.92]
[1762571292005,3.09,164.76,164.69,2.92]
[1762571292807,0.03955993,164.74,164.71,2.96106247]
[1762571293896,0.03955993,164.74,164.71,8.42806247]
[1762571294097,3.12955993,164.74,164.71,0.04106247]
[1762571297105,8.59575993,164.74,164.71,0.04106247]
[1762571297402,3.09,164.73,164.71,0.04106247]
[1762571300010,7.4688281,164.73,164.71,0.04106247]
[1762571300306,3.09,164.73,164.71,0.04106247]
[1762571303312,8.5566,164.73,164.71,0.04106247]
[1762571303611,0.03955993,164.74,164.6,2.92]
[1762571303612,3.09,164.71,164.6,2.92]
[1762571303904,5.7043787,164.74,164.63,5.4694]
[1762571303905,3.09,164.69,164.63,5.4694]
[1762571304405,0.04169987,164.68,164.63,2.92]
[1762571304611,3.13169987,164.68,164.64,2.96513136]
[1762571305411,0.04169987,164.68,164.66,2.92]
[1762571305615,3.13169987,164.68,164.65,2.92]
[1762571305904,3.13169987,164.68,164.64,2.96513136]
[1762571307111,3.13169987,164.68,164.64,8.43433136]
[1762571309914,3.13169987,164.68,164.64,0.04513136]
[1762571310615,3.09,164.65,164.64,0.04513136]
[1762571314714,2.97,164.59,164.54,7.44554842]
[1762571314915,2.97,164.59,164.53,3.08]
[1762571315813,3.00983392,164.58,164.54,3.12529795]
[1762571316111,3.00983392,164.58,164.54,0.04529795]
[1762571317122,2.97,164.56,164.54,0.04529795]
[1762571317619,2.97,164.55,164.48,3.08]
[1762571318314,2.97,164.55,164.38,11.20897331]
[1762571318315,2.97,164.52,164.45,3.08]
[1762571318918,2.97,164.5,164.42,8.5567]
[1762571319524,2.97,164.47,164.44,0.04231923]
[1762571319720,3.01004085,164.47,164.44,0.03952146]
[1762571320211,0.04004085,164.47,164.44,3.11952146]
[1762571320815,3.01004085,164.47,164.44,0.03952146]
[1762571323321,8.4457,164.45,164.44,0.03952146]
[1762571324113,3.01004085,164.47,164.44,0.03952146]
[1762571325612,0.04004085,164.47,164.44,2.99952146]
[1762571326311,5.67430055,164.54,164.46,2.96]
[1762571326516,2.97,164.54,164.46,2.96]
[1762571326720,2.70430055,164.58,164.46,2.96]
[1762571326918,2.97,164.57,164.5,2.96]
[1762571327524,0.04610675,164.55,164.52,2.99840573]
[1762571328021,0.04610675,164.55,164.53,2.96]
[1762571329022,0.04610675,164.55,164.54,2.96]
[1762571329920,3.01610675,164.55,164.52,2.99840573]
[1762571330320,0.04610675,164.55,164.52,2.99840573]
[1762571333825,3.01610675,164.55,164.52,0.03840573]
[1762571334418,0.04610675,164.55,164.52,2.99840573]
[1762571335424,3.01610675,164.55,164.52,0.03840573]
[1762571335822,0.04610675,164.55,164.52,2.99840573]
[1762571341635,0.04610675,164.55,164.52,0.03840573]
[1762571341636,3.01610675,164.55,164.52,0.03840573]
[1762571347536,2.89,164.54,164.52,0.03840573]
[1762571347732,2.89,164.54,164.46,3.08]
[1762571348036,2.89,164.52,164.39,3.08]
[1762571348429,5.4746,164.49,164.43,8.5563]
[1762571348627,0.03862547,164.48,164.44,0.04085531]
[1762571348935,0.03862547,164.48,164.44,3.12085531]
[1762571349335,2.92862547,164.48,164.44,3.12085531]
[1762571350742,8.40362547,164.48,164.44,0.04085531]
[1762571351031,8.40362547,164.48,164.44,3.12085531]
[1762571351032,0.03862547,164.48,164.44,3.12085531]
[1762571351224,0.03862547,164.48,164.47,3.08]
[1762571352728,5.766e-05,164.66,164.51,10.947]
[1762571352932,2.70430055,164.68,164.59,3.08]
[1762571353237,5.59430055,164.62,164.49,3.08]
[1762571353542,2.89,164.61,164.51,3.08]
[1762571353724,2.9310015,164.58,164.54,0.04298521]
[1762571354435,0.0410015,164.58,164.54,3.12298521]
[1762571358541,0.0410015,164.58,164.55,3.08]
[1762571360043,2.9310015,164.58,164.54,0.04298521]
[1762571360245,2.9310015,164.58,164.54,3.12298521]
[1762571361445,0.0410015,164.58,164.54,3.12298521]
[1762571362940,0.0410015,164.58,164.54,8.59538521]
[1762571363341,0.0410015,164.58,164.55,3.08]
[1762571363544,0.0410015,164.58,164.54,0.04298521]
[1762571363545,2.9310015,164.58,164.54,0.04298521]
[1762571364445,2.9310015,164.58,164.54,3.12298521]
[1762571365342,2.9310015,164.58,164.54,0.04298521]
[1762571367646,2.9310015,164.58,164.54,3.12298521]
[1762571371141,2.9310015,164.58,164.54,8.59548521]
[1762571371450,0.0410015,164.58,164.55,3.08]
[1762571371644,2.9310015,164.58,164.55,3.08]
[1762571372248,0.0410015,164.58,164.56,3.08]
[1762571373347,0.0410015,164.58,164.56,8.5519]
[1762571373550,0.0410015,164.58,164.57,3.05]
[1762571376350,0.0410015,164.58,164.56,8.5219]
[1762571377947,3.1710015,164.58,164.54,8.56558521]
[1762571378556,3.1710015,164.58,164.54,0.04298521]
[1762571379157,3.13,164.57,164.54,0.04298521]
[1762571383255,3.13,164.57,164.54,3.13298521]
[1762571385059,0.0410015,164.58,164.54,3.13298521]